fUSD/lending_fUSD_20250504
["ID","MTS","AMOUNT","RATE_DAILY","PERIOD"]
[359792019,1746351042815,-450.0,0.00019753,2]
[359792020,1746351042824,-481.75602098,0.00019753,2]
[359792021,1746351042833,-450.0,0.00019753,2]
[359792022,1746351042842,-450.0,0.00019753,2]
[359792023,1746351042851,-473.49454273,0.00019753,2]
[359792024,1746351042860,-450.0,0.00019753,2]
[359792025,1746351042869,-450.0,0.00019753,2]
[359792026,1746351042879,-497.16964433,0.00019753,2]
[359792027,1746351042888,-465.1676362,0.00019753,2]
[359792028,1746351042897,-450.0,0.00019753,2]
[359792029,1746351042906,-467.13053254,0.00019753,2]
[359792030,1746351042915,-450.0,0.00019753,2]
[359792031,1746351042925,-450.0,0.00019753,2]
[359792032,1746351042934,-456.96178545,0.00019753,2]
[359792033,1746351042943,-474.12,0.00019753,2]
[359792034,1746351042952,-484.97627512,0.00019753,2]
[359792035,1746351042962,-474.90239577,0.00019753,2]
[359792036,1746351042971,-450.0,0.00019753,2]
[359792037,1746351042980,-460.90643317,0.00019753,2]
[359792038,1746351042989,-450.0,0.00019753,2]
[359792039,1746351042998,-480.82699754,0.00019753,2]
[359792040,1746351043007,-463.33448901,0.00019753,2]
[359792041,1746351043016,-459.45051218,0.00019753,2]
[359792042,1746351043025,-461.62457177,0.00019753,2]
[359792043,1746351043034,-462.72582511,0.00019753,2]
[359792044,1746351043044,-582.94309495,0.00019753,2]
[359792045,1746351043053,-450.0,0.00019753,2]
[359792046,1746351043062,-475.20018243,0.00019753,2]
[359792047,1746351043071,-450.0,0.00019753,2]
[359792048,1746351043080,-560.89246673,0.00019753,2]
[359792049,1746351043089,-450.0,0.00019753,2]
[359792050,1746351043099,-460.24317004,0.00019753,2]
[359792051,1746351043109,-450.0,0.00019753,2]
[359792052,1746351043118,-666.05,0.00019753,2]
[359792053,1746351043129,-518.63,0.00019753,2]
[359792054,1746351043142,-490.21005319,0.00019753,2]
[359792055,1746351043151,-475.69086157,0.00019753,2]
[359792056,1746351043160,-465.16152851,0.00019753,2]
[359792057,1746351043170,-690.36,0.00019753,2]
[359792058,1746351043179,-450.0,0.00019753,2]
[359792060,1746351043188,-471.94510149,0.00019753,2]
[359792062,1746351043197,-475.20590651,0.00019753,2]
[359792063,1746351043207,-450.0,0.00019753,2]
[359792065,1746351043216,-450.0,0.00019753,2]
[359792067,1746351043225,-450.0,0.00019753,2]
[359792069,1746351043234,-450.0,0.00019753,2]
[359792071,1746351043243,-471.40994157,0.00019753,2]
[359792073,1746351043253,-450.0,0.00019753,2]
[359792075,1746351043263,-450.0,0.00019753,2]
[359792077,1746351043273,-450.0,0.00019753,2]
[359792079,1746351043282,-453.92830837,0.00019753,2]
[359792081,1746351043291,-450.0,0.00019753,2]
[359792083,1746351043300,-860.61,0.00019753,2]
[359792086,1746351043309,-450.0,0.00019753,2]
[359792089,1746351043318,-467.32488061,0.00019753,2]
[359792091,1746351043327,-450.0,0.00019753,2]
[359792093,1746351043335,-450.0,0.00019753,2]
[359792095,1746351043345,-475.09,0.00019753,2]
[359792097,1746351043354,-450.0,0.00019753,2]
[359792099,1746351043363,-450.0,0.00019753,2]
[359792101,1746351043371,-450.0,0.00019753,2]
[359792103,1746351043380,-450.0,0.00019753,2]
[359792105,1746351043390,-450.0,0.00019753,2]
[359792107,1746351043399,-475.48632499,0.00019753,2]
[359792109,1746351043408,-493.02,0.00019753,2]
[359792111,1746351043418,-456.34209792,0.00019753,2]
[359792113,1746351043427,-508.54566636,0.00019753,2]
[359792115,1746351043436,-450.0,0.00019753,2]
[359792117,1746351043446,-489.65863991,0.00019753,2]
[359792119,1746351043455,-450.0,0.00019753,2]
[359792121,1746351043464,-480.07862017,0.00019753,2]
[359792123,1746351043473,-480.0833098,0.00019753,2]
[359792125,1746351043482,-450.0,0.00019753,2]
[359792127,1746351043491,-161.28392047,0.00019753,2]
[359792129,1746351043500,-450.0,0.00019753,2]
[359792131,1746351043508,-472.35012035,0.00019753,2]
[359792133,1746351043518,-450.0,0.00019753,2]
[359792135,1746351043527,-450.0,0.00019753,2]
[359792137,1746351043536,-1620.56,0.00019753,2]
[359792139,1746351043547,-450.0,0.00019753,2]
[359792141,1746351043556,-695.86,0.00019753,2]
[359792143,1746351043565,-593.19261331,0.00019753,2]
[359792145,1746351043574,-587.51917562,0.00019753,2]
[359792147,1746351043583,-450.0,0.00019753,2]
[359792149,1746351043593,-450.0,0.00019753,2]
[359792151,1746351043602,-474.21236692,0.00019753,2]
[359792153,1746351043611,-1345.45,0.00019753,2]
[359792156,1746351043621,-450.0,0.00019753,2]
[359792157,1746351043630,-450.0,0.00019753,2]
[359792159,1746351043641,-450.0,0.00019753,2]
[359792161,1746351043651,-487.00270582,0.00019753,2]
[359792162,1746351043660,-508.86567186,0.00019753,2]
[359792163,1746351043669,-459.30873225,0.00019753,2]
[359792164,1746351043678,-450.0,0.00019753,2]
[359792165,1746351043687,-450.0,0.00019753,2]
[359792166,1746351043696,-523.95698963,0.00019753,2]
[359792167,1746351043705,-450.0,0.00019753,2]
[359792168,1746351043714,-450.0,0.00019753,2]
[359792169,1746351043723,-493.64390428,0.00019753,2]
[359792170,1746351043732,-450.0,0.00019753,2]
[359792171,1746351043741,-537.92,0.00019753,2]
[359792172,1746351043751,-450.0,0.00019753,2]
[359792173,1746351043760,-543.99,0.00019753,2]
[359792174,1746351043769,-450.0,0.00019753,2]
[359792175,1746351043779,-450.0,0.00019753,2]
[359792176,1746351043787,-450.0,0.00019753,2]
[359792177,1746351043797,-472.83,0.00019753,2]
[359792178,1746351043807,-453.17523805,0.00019753,2]
[359792179,1746351043815,-450.0,0.00019753,2]
[359792180,1746351043826,-492.37,0.00019753,2]
[359792181,1746351043835,-450.0,0.00019753,2]
[359792182,1746351043846,-450.0,0.00019753,2]
[359792183,1746351043856,-484.99,0.00019753,2]
[359792184,1746351043867,-450.0,0.00019753,2]
[359792185,1746351043876,-466.66398239,0.00019753,2]
[359792186,1746351043886,-450.0,0.00019753,2]
[359792187,1746351043896,-450.0,0.00019753,2]
[359792188,1746351043905,-450.0,0.00019753,2]
[359792189,1746351043915,-450.0,0.00019753,2]
[359792190,1746351043925,-450.0,0.00019753,2]
[359792191,1746351043935,-450.0,0.00019753,2]
[359792192,1746351043944,-906.47,0.00019753,2]
[359792193,1746351043953,-745.64,0.00019753,2]
[359792194,1746351043963,-450.0,0.00019753,2]
[359792195,1746351043972,-450.0,0.00019753,2]
[359792196,1746351043982,-450.0,0.00019753,2]
[359792197,1746351043991,-450.0,0.00019753,2]
[359792198,1746351044000,-610.75,0.00019753,2]
[359792199,1746351044010,-833.47,0.00019753,2]
[359792200,1746351044019,-466.24,0.00019753,2]
[359792201,1746351044029,-450.0,0.00019753,2]
[359792202,1746351044038,-450.0,0.00019753,2]
[359792203,1746351044048,-223.27141559,0.00019753,2]
[359792204,1746351044057,-641.66,0.00019753,2]
[359792205,1746351044067,-450.0,0.00019753,2]
[359792206,1746351044076,-482.19,0.00019753,2]
[359792207,1746351044085,-3230.66,0.00019753,2]
[359792208,1746351044094,-450.0,0.00019753,2]
[359792209,1746351044103,-450.0,0.00019753,2]
[359792210,1746351044113,-347.70328452,0.00019753,2]
[359792211,1746351044122,-831.16,0.00019753,2]
[359792212,1746351044134,-450.0,0.00019753,2]
[359792213,1746351044145,-1026.43,0.00019753,2]
[359792214,1746351044154,-450.0,0.00019753,2]
[359792215,1746351044163,-3403.41,0.00019753,2]
[359792216,1746351044172,-450.0,0.00019753,2]
[359792217,1746351044182,-450.0,0.00019753,2]
[359792218,1746351044191,-706.47,0.00019753,2]
[359792219,1746351044200,-450.0,0.00019753,2]
[359792220,1746351044212,-450.0,0.00019753,2]
[359792221,1746351044221,-450.0,0.00019753,2]
[359792222,1746351044230,-450.0,0.00019753,2]
[359792223,1746351044241,-450.0,0.00019753,2]
[359792224,1746351044251,-450.0,0.00019753,2]
[359792225,1746351044261,-450.0,0.00019753,2]
[359792226,1746351044270,-2803.29,0.00019753,2]
[359792227,1746351044279,-450.0,0.00019753,2]
[359792228,1746351044288,-841.99,0.00019753,2]
[359792229,1746351044298,-55115.85,0.00019753,2]
[359792230,1746351044307,-450.0,0.00019753,2]
[359792231,1746351044317,-450.0,0.00019753,2]
[359792232,1746351044326,-450.0,0.00019753,2]
[359792233,1746351044335,-450.0,0.00019753,2]
[359792234,1746351044345,-450.0,0.00019753,2]
[359792235,1746351044355,-798.6,0.00019753,2]
[359792236,1746351044364,-450.0,0.00019753,2]
[359792237,1746351044374,-450.0,0.00019753,2]
[359792238,1746351044384,-450.0,0.00019753,2]
[359792239,1746351044393,-450.0,0.00019753,2]
[359792240,1746351044402,-450.0,0.00019753,2]
[359792241,1746351044411,-1141.6,0.00019753,2]
[359792242,1746351044421,-450.0,0.00019753,2]
[359792243,1746351044431,-450.0,0.00019753,2]
[359792244,1746351044441,-2775.03,0.00019753,2]
[359792245,1746351044450,-450.0,0.00019753,2]
[359792246,1746351044459,-450.0,0.00019753,2]
[359792247,1746351044468,-13107.39,0.00019753,2]
[359792248,1746351044478,-563.01,0.00019753,2]
[359792249,1746351044488,-450.0,0.00019753,2]
[359792250,1746351044497,-722.64,0.00019753,2]
[359792251,1746351044507,-450.0,0.00019753,2]
[359792252,1746351044516,-450.0,0.00019753,2]
[359792253,1746351044527,-260.52,0.00019753,2]
[359792254,1746351044536,-521.41530212,0.00019753,2]
[359792255,1746351044546,-881.79,0.00019753,2]
[359792256,1746351044555,-1402.98,0.00019753,2]
[359792257,1746351044565,-450.0,0.00019753,2]
[359792258,1746351044574,-528.63,0.00019753,2]
[359792259,1746351044584,-390.05651311,0.00019753,2]
[359792260,1746351044593,-1082.24,0.00019753,2]
[359792261,1746351044603,-7221.87,0.00019753,2]
[359792262,1746351044612,-709.41,0.00019753,2]
[359792263,1746351044622,-450.0,0.00019753,2]
[359792264,1746351044633,-4203.96,0.00019753,2]
[359792265,1746351044643,-450.0,0.00019753,2]
[359792266,1746351044653,-450.0,0.00019753,2]
[359792267,1746351044662,-450.0,0.00019753,2]
[359792268,1746351044672,-550.10842125,0.00019753,2]
[359792269,1746351044682,-450.0,0.00019753,2]
[359792270,1746351044691,-450.0,0.00019753,2]
[359792271,1746351044701,-696.93,0.00019753,2]
[359792272,1746351044710,-450.0,0.00019753,2]
[359792273,1746351044721,-450.0,0.00019753,2]
[359792274,1746351044730,-450.0,0.00019753,2]
[359792275,1746351044739,-831.17,0.00019753,2]
[359792276,1746351044749,-73600.72,0.00019753,2]
[359792277,1746351044758,-373.64892036,0.00019753,2]
[359792278,1746351044768,-501.45,0.00019753,2]
[359792279,1746351044777,-865.37,0.00019753,2]
[359792280,1746351044786,-450.0,0.00019753,2]
[359792281,1746351044796,-450.0,0.00019753,2]
[359792282,1746351044805,-450.0,0.00019753,2]
[359792283,1746351044815,-450.0,0.00019753,2]
[359792284,1746351044824,-804.23,0.00019753,2]
[359792285,1746351044833,-450.0,0.00019753,2]
[359792286,1746351044843,-450.0,0.00019753,2]
[359792287,1746351044853,-450.0,0.00019753,2]
[359792288,1746351044862,-450.0,0.00019753,2]
[359792289,1746351044872,-597.26,0.00019753,2]
[359792290,1746351044882,-1204.66,0.00019753,2]
[359792291,1746351044891,-3216.35,0.00019753,2]
[359792292,1746351044901,-493.14,0.00019753,2]
[359792293,1746351044910,-450.0,0.00019753,2]
[359792294,1746351044919,-516.12,0.00019753,2]
[359792295,1746351044929,-691.8,0.00019753,2]
[359792296,1746351044938,-539.48,0.00019753,2]
[359792297,1746351044948,-450.0,0.00019753,2]
[359792298,1746351044957,-450.0,0.00019753,2]
[359792299,1746351044967,-494.11,0.00019753,2]
[359792300,1746351044977,-450.0,0.00019753,2]
[359792301,1746351044986,-450.0,0.00019753,2]
[359792302,1746351044996,-450.0,0.00019753,2]
[359792303,1746351045005,-450.0,0.00019753,2]
[359792304,1746351045014,-565.36,0.00019753,2]
[359792305,1746351045024,-2472.25,0.00019753,2]
[359792306,1746351045034,-3327.9,0.00019753,2]
[359792307,1746351045043,-559.97,0.00019753,2]
[359792308,1746351045053,-450.0,0.00019753,2]
[359792309,1746351045063,-450.0,0.00019753,2]
[359792310,1746351045072,-450.0,0.00019753,2]
[359792311,1746351045082,-1396.5,0.00019753,2]
[359792312,1746351045092,-472.38523304,0.00019753,2]
[359792313,1746351045101,-554.7,0.00019753,2]
[359792314,1746351045110,-450.0,0.00019753,2]
[359792315,1746351045119,-1108.1,0.00019753,2]
[359792316,1746351045130,-1188.84,0.00019753,2]
[359792317,1746351045142,-450.0,0.00019753,2]
[359792318,1746351045151,-460.1059309,0.00019753,2]
[359792319,1746351045162,-450.0,0.00019753,2]
[359792320,1746351045173,-465.57847005,0.00019753,2]
[359792321,1746351045182,-450.0,0.00019753,2]
[359792322,1746351045191,-581.62864796,0.00019753,2]
[359792323,1746351045200,-450.0,0.00019753,2]
[359792324,1746351045209,-651.04,0.00019753,2]
[359792325,1746351045218,-1000.0,0.00019765,2]
[359792326,1746351045227,-500.0,0.00019773,2]
[359792327,1746351045237,-500.0,0.00019773,2]
[359792328,1746351045246,-500.0,0.00019773,2]
[359792329,1746351045255,-500.8271587,0.00019773,2]
[359792330,1746351045265,-440.73044005,0.00019778,2]
[359792331,1746351045274,-308.93535096,0.00019778,2]
[359792332,1746351045283,-450.0,0.0001978,2]
[359792333,1746351045292,-450.0,0.0001978,2]
[359792334,1746351045301,-520.86915787,0.0001978,2]
[359792335,1746351045310,-485.06234444,0.0001978,2]
[359792336,1746351045319,-450.0,0.0001978,2]
[359792337,1746351045328,-479.2060649,0.0001978,2]
[359792338,1746351045337,-480.51897901,0.0001978,2]
[359792339,1746351045346,-179.1718849,0.0001978,2]
[359792340,1746351045358,-450.0,0.0001978,2]
[359792341,1746351045367,-474.12,0.0001978,2]
[359792342,1746351045377,-575.2899961,0.0001978,2]
[359792343,1746351045387,-450.0,0.0001978,2]
[359792344,1746351045397,-450.0,0.0001978,2]
[359792345,1746351045407,-666.05,0.0001978,2]
[359792346,1746351045419,-518.63,0.0001978,2]
[359792347,1746351045428,-690.36,0.0001978,2]
[359792348,1746351045438,-460.62772181,0.0001978,2]
[359792349,1746351045447,-573.44291963,0.0001978,2]
[359792350,1746351045456,-450.0,0.0001978,2]
[359792351,1746351045465,-450.0,0.0001978,2]
[359792352,1746351045476,-450.0,0.0001978,2]
[359792353,1746351045485,-450.0,0.0001978,2]
[359792354,1746351045494,-450.0,0.0001978,2]
[359792356,1746351045505,-450.0,0.0001978,2]
[359792357,1746351045514,-860.61,0.0001978,2]
[359792358,1746351045522,-450.0,0.0001978,2]
[359792359,1746351045531,-450.0,0.0001978,2]
[359792360,1746351045540,-475.09,0.0001978,2]
[359792361,1746351045549,-456.93793755,0.0001978,2]
[359792362,1746351045558,-187.07391783,0.0001978,2]
[359792363,1746351045567,-450.0,0.0001978,2]
[359792364,1746351045577,-450.0,0.0001978,2]
[359792365,1746351045586,-561.01400175,0.0001978,2]
[359792366,1746351045595,-493.02,0.0001978,2]
[359792367,1746351045604,-450.0,0.0001978,2]
[359792369,1746351045613,-450.0,0.0001978,2]
[359792371,1746351045623,-174.08413905,0.0001978,2]
[359792373,1746351045632,-450.0,0.0001978,2]
[359792375,1746351045641,-450.0,0.0001978,2]
[359792377,1746351045650,-450.0,0.0001978,2]
[359792378,1746351045659,-1620.56,0.0001978,2]
[359792380,1746351045669,-450.0,0.0001978,2]
[359792382,1746351045678,-695.86,0.0001978,2]
[359792384,1746351045687,-450.0,0.0001978,2]
[359792386,1746351045696,-1345.45,0.0001978,2]
[359792388,1746351045705,-450.0,0.0001978,2]
[359792390,1746351045714,-450.0,0.0001978,2]
[359792391,1746351045723,-383.34605967,0.0001978,2]
[359792393,1746351045732,-450.0,0.0001978,2]
[359792395,1746351045741,-444.69097505,0.0001978,2]
[359792397,1746351045751,-542.46739984,0.0001978,2]
[359792399,1746351045760,-537.92,0.0001978,2]
[359792401,1746351045770,-450.0,0.0001978,2]
[359792403,1746351045780,-543.99,0.0001978,2]
[359792405,1746351045789,-450.0,0.0001978,2]
[359792407,1746351045798,-450.0,0.0001978,2]
[359792409,1746351045807,-450.0,0.0001978,2]
[359792410,1746351045817,-450.0,0.0001978,2]
[359792412,1746351045826,-450.0,0.0001978,2]
[359792414,1746351045835,-450.0,0.0001978,2]
[359792416,1746351045844,-501.56177002,0.0001978,2]
[359792418,1746351045853,-450.0,0.0001978,2]
[359792420,1746351045862,-450.0,0.0001978,2]
[359792422,1746351045874,-450.0,0.0001978,2]
[359792424,1746351045883,-906.47,0.0001978,2]
[359792426,1746351045893,-745.64,0.0001978,2]
[359792428,1746351045902,-450.0,0.0001978,2]
[359792430,1746351045912,-450.0,0.0001978,2]
[359792431,1746351045921,-450.0,0.0001978,2]
[359792433,1746351045930,-450.0,0.0001978,2]
[359792435,1746351045939,-610.75,0.0001978,2]
[359792437,1746351045948,-833.47,0.0001978,2]
[359792439,1746351045958,-466.24,0.0001978,2]
[359792441,1746351045967,-450.0,0.0001978,2]
[359792443,1746351045976,-641.66,0.0001978,2]
[359792444,1746351045985,-450.0,0.0001978,2]
[359792446,1746351045994,-482.19,0.0001978,2]
[359792448,1746351046004,-3230.66,0.0001978,2]
[359792450,1746351046013,-450.0,0.0001978,2]
[359792452,1746351046023,-450.0,0.0001978,2]
[359792454,1746351046032,-831.16,0.0001978,2]
[359792456,1746351046041,-1026.43,0.0001978,2]
[359792458,1746351046053,-450.0,0.0001978,2]
[359792460,1746351046062,-3403.41,0.0001978,2]
[359792462,1746351046072,-450.0,0.0001978,2]
[359792464,1746351046082,-450.0,0.0001978,2]
[359792466,1746351046091,-706.47,0.0001978,2]
[359792467,1746351046100,-592.93,0.0001978,2]
[359792469,1746351046109,-450.0,0.0001978,2]
[359792471,1746351046118,-504.08,0.0001978,2]
[359792473,1746351046128,-450.0,0.0001978,2]
[359792475,1746351046137,-450.0,0.0001978,2]
[359792477,1746351046148,-450.0,0.0001978,2]
[359792478,1746351046158,-450.0,0.0001978,2]
[359792480,1746351046167,-2803.29,0.0001978,2]
[359792482,1746351046176,-450.0,0.0001978,2]
[359792484,1746351046185,-841.99,0.0001978,2]
[359792486,1746351046196,-55115.85,0.0001978,2]
[359792488,1746351046205,-450.0,0.0001978,2]
[359792491,1746351046214,-450.0,0.0001978,2]
[359792494,1746351046223,-450.0,0.0001978,2]
[359792496,1746351046233,-450.0,0.0001978,2]
[359792499,1746351046243,-283.41,0.0001978,2]
[359792502,1746351046253,-798.6,0.0001978,2]
[359792505,1746351046262,-316.64577214,0.0001978,2]
[359792508,1746351046271,-450.0,0.0001978,2]
[359792511,1746351046281,-450.0,0.0001978,2]
[359792514,1746351046290,-450.0,0.0001978,2]
[359792517,1746351046300,-1141.6,0.0001978,2]
[359792521,1746351046310,-450.0,0.0001978,2]
[359792525,1746351046320,-466.18,0.0001978,2]
[359792528,1746351046329,-2775.03,0.0001978,2]
[359792531,1746351046338,-450.0,0.0001978,2]
[359792534,1746351046347,-450.0,0.0001978,2]
[359792536,1746351046357,-13107.39,0.0001978,2]
[359792540,1746351046367,-563.01,0.0001978,2]
[359792544,1746351046376,-169.00868661,0.0001978,2]
[359792547,1746351046385,-722.64,0.0001978,2]
[359792550,1746351046394,-450.0,0.0001978,2]
[359792553,1746351046403,-450.0,0.0001978,2]
[359792556,1746351046412,-881.79,0.0001978,2]
[359792558,1746351046421,-1402.98,0.0001978,2]
[359792560,1746351046431,-450.0,0.0001978,2]
[359792562,1746351046439,-528.63,0.0001978,2]
[359792564,1746351046448,-1082.24,0.0001978,2]
[359792567,1746351046457,-7221.87,0.0001978,2]
[359792570,1746351046467,-709.41,0.0001978,2]
[359792573,1746351046477,-450.0,0.0001978,2]
[359792576,1746351046487,-4203.96,0.0001978,2]
[359792579,1746351046497,-426.86,0.0001978,2]
[359792582,1746351046506,-450.0,0.0001978,2]
[359792585,1746351046515,-160.15682808,0.0001978,2]
[359792588,1746351046525,-450.0,0.0001978,2]
[359792591,1746351046534,-450.0,0.0001978,2]
[359792594,1746351046543,-696.93,0.0001978,2]
[359792597,1746351046552,-450.0,0.0001978,2]
[359792600,1746351046561,-450.0,0.0001978,2]
[359792603,1746351046570,-831.17,0.0001978,2]
[359792606,1746351046579,-73600.72,0.0001978,2]
[359792608,1746351046588,-865.37,0.0001978,2]
[359792611,1746351046598,-450.0,0.0001978,2]
[359792633,1746351046791,-450.0,0.0001978,2]
[359792635,1746351046800,-450.0,0.0001978,2]
[359792636,1746351046810,-450.0,0.0001978,2]
[359792638,1746351046819,-804.23,0.0001978,2]
[359792640,1746351046829,-188.91180155,0.0001978,2]
[359792642,1746351046839,-450.0,0.0001978,2]
[359792644,1746351046848,-450.0,0.0001978,2]
[359792646,1746351046858,-450.0,0.0001978,2]
[359792648,1746351046867,-1204.66,0.0001978,2]
[359792650,1746351046877,-3216.35,0.0001978,2]
[359792652,1746351046887,-493.14,0.0001978,2]
[359792654,1746351046897,-450.0,0.0001978,2]
[359792656,1746351046907,-691.8,0.0001978,2]
[359792658,1746351046917,-516.12,0.0001978,2]
[359792660,1746351046927,-539.48,0.0001978,2]
[359792662,1746351046936,-450.0,0.0001978,2]
[359792665,1746351046946,-450.0,0.0001978,2]
[359792667,1746351046956,-494.11,0.0001978,2]
[359792669,1746351046966,-450.0,0.0001978,2]
[359792670,1746351046976,-450.0,0.0001978,2]
[359792672,1746351046986,-450.0,0.0001978,2]
[359792674,1746351046996,-565.36,0.0001978,2]
[359792676,1746351047006,-2472.25,0.0001978,2]
[359792678,1746351047016,-3327.9,0.0001978,2]
[359792680,1746351047027,-559.97,0.0001978,2]
[359792682,1746351047037,-450.0,0.0001978,2]
[359792685,1746351047048,-450.0,0.0001978,2]
[359792686,1746351047058,-450.0,0.0001978,2]
[359792687,1746351047068,-1396.5,0.0001978,2]
[359792689,1746351047078,-554.7,0.0001978,2]
[359792691,1746351047089,-450.0,0.0001978,2]
[359792693,1746351047099,-1108.1,0.0001978,2]
[359792695,1746351047109,-1188.84,0.0001978,2]
[359792697,1746351047119,-450.0,0.0001978,2]
[359792699,1746351047129,-450.0,0.0001978,2]
[359792701,1746351047138,-450.0,0.0001978,2]
[359792702,1746351047145,-450.0,0.0001978,2]
[359792704,1746351047153,-651.04,0.0001978,2]
[359792706,1746351047160,-3526.6409,0.00019787,2]
[359792707,1746351047169,-174.64455112,0.00019808,2]
[359792709,1746351047177,-514.971747,0.00019808,2]
[359792711,1746351047184,-450.0,0.00019808,2]
[359792713,1746351047192,-450.0,0.00019808,2]
[359792714,1746351047199,-474.12,0.00019808,2]
[359792716,1746351047206,-450.0,0.00019808,2]
[359792718,1746351047212,-450.0,0.00019808,2]
[359792719,1746351047219,-666.05,0.00019808,2]
[359792721,1746351047227,-518.63,0.00019808,2]
[359792722,1746351047234,-690.36,0.00019808,2]
[359792724,1746351047242,-450.0,0.00019808,2]
[359792726,1746351047248,-450.0,0.00019808,2]
[359792727,1746351047255,-450.0,0.00019808,2]
[359792729,1746351047262,-450.0,0.00019808,2]
[359792731,1746351047269,-450.0,0.00019808,2]
[359792732,1746351047277,-860.61,0.00019808,2]
[359792734,1746351047285,-450.0,0.00019808,2]
[359792736,1746351047294,-450.0,0.00019808,2]
[359792738,1746351047301,-475.09,0.00019808,2]
[359792740,1746351047309,-450.0,0.00019808,2]
[359792741,1746351047317,-450.0,0.00019808,2]
[359792743,1746351047325,-493.02,0.00019808,2]
[359792744,1746351047332,-450.0,0.00019808,2]
[359792745,1746351047341,-450.0,0.00019808,2]
[359792746,1746351047349,-450.0,0.00019808,2]
[359792747,1746351047356,-450.0,0.00019808,2]
[359792748,1746351047364,-450.0,0.00019808,2]
[359792749,1746351047371,-1620.56,0.00019808,2]
[359792750,1746351047378,-498.661361,0.00019808,2]
[359792752,1746351047385,-695.86,0.00019808,2]
[359792753,1746351047392,-450.0,0.00019808,2]
[359792755,1746351047399,-1345.45,0.00019808,2]
[359792757,1746351047405,-450.0,0.00019808,2]
[359792758,1746351047412,-450.0,0.00019808,2]
[359792760,1746351047418,-450.0,0.00019808,2]
[359792762,1746351047424,-537.92,0.00019808,2]
[359792764,1746351047433,-169.56,0.00019808,2]
[359792766,1746351047441,-543.99,0.00019808,2]
[359792767,1746351047448,-450.0,0.00019808,2]
[359792769,1746351047455,-450.0,0.00019808,2]
[359792771,1746351047462,-450.0,0.00019808,2]
[359792773,1746351047469,-450.0,0.00019808,2]
[359792775,1746351047476,-450.0,0.00019808,2]
[359792776,1746351047484,-450.0,0.00019808,2]
[359792778,1746351047492,-450.0,0.00019808,2]
[359792780,1746351047499,-450.0,0.00019808,2]
[359792782,1746351047506,-450.0,0.00019808,2]
[359792783,1746351047514,-906.47,0.00019808,2]
[359792785,1746351047521,-745.64,0.00019808,2]
[359792787,1746351047528,-450.0,0.00019808,2]
[359792788,1746351047535,-450.0,0.00019808,2]
[359792789,1746351047541,-450.0,0.00019808,2]
[359792790,1746351047547,-450.0,0.00019808,2]
[359792791,1746351047555,-610.75,0.00019808,2]
[359792792,1746351047562,-833.47,0.00019808,2]
[359792793,1746351047569,-466.24,0.00019808,2]
[359792794,1746351047577,-450.0,0.00019808,2]
[359792795,1746351047583,-641.66,0.00019808,2]
[359792796,1746351047590,-450.0,0.00019808,2]